[Event "Live Chess"]
[Site "Chess.com"]
[Date "2023.05.21"]
[Round "-"]
[White "McSlash1"]
[Black "Ginger_GM"]
[Result "0-1"]
[WhiteElo "2003"]
[BlackElo "2731"]
[TimeControl "300"]
[EndTime "4:59:48 PDT"]
[Termination "Ginger_GM won by resignation"]

1. e4 {[%clk 0:04:58.9]} 1... e6 {[%clk 0:04:54.8]} 2. d4 {[%clk 0:04:58.2]}
2... d5 {[%clk 0:04:53.1]} 3. Nd2 {[%clk 0:04:57.9]} 3... Nf6 {[%clk 0:04:52]}
4. e5 {[%clk 0:04:56.9]} 4... Nfd7 {[%clk 0:04:50.4]} 5. Bd3 {[%clk 0:04:56.6]}
5... c5 {[%clk 0:04:49.8]} 6. c3 {[%clk 0:04:56.2]} 6... Nc6 {[%clk 0:04:49.1]}
7. Ngf3 {[%clk 0:04:55.8]} 7... Be7 {[%clk 0:04:47.5]} 8. O-O {[%clk 0:04:54.5]}
8... a5 {[%clk 0:04:46.6]} 9. Bb1 {[%clk 0:04:51.7]} 9... cxd4 {[%clk 0:04:44]}
10. cxd4 {[%clk 0:04:50.8]} 10... b6 {[%clk 0:04:42.1]} 11. a3 {[%clk
0:04:45.8]} 11... Ba6 {[%clk 0:04:39.8]} 12. Re1 {[%clk 0:04:44.6]} 12... g5
{[%clk 0:04:39.3]} 13. h3 {[%clk 0:04:43]} 13... h5 {[%clk 0:04:37.8]} 14. Nf1
{[%clk 0:04:42.5]} 14... a4 {[%clk 0:04:21.4]} 15. N1h2 {[%clk 0:04:37.2]} 15...
Bc4 {[%clk 0:04:19.2]} 16. Bc2 {[%clk 0:04:32.8]} 16... b5 {[%clk 0:04:17.7]}
17. b3 {[%clk 0:04:30.2]} 17... axb3 {[%clk 0:04:16.4]} 18. Bxb3 {[%clk
0:04:30.1]} 18... Nb6 {[%clk 0:04:13.9]} 19. Bc2 {[%clk 0:04:27]} 19... Rg8
{[%clk 0:04:05.7]} 20. Bh7 {[%clk 0:04:22.6]} 20... Rg7 {[%clk 0:04:04.2]} 21.
Bd3 {[%clk 0:04:21.3]} 21... g4 {[%clk 0:04:03.2]} 22. hxg4 {[%clk 0:04:19.6]}
22... hxg4 {[%clk 0:04:03.1]} 23. Bh6 {[%clk 0:04:04.5]} 23... Rg8 {[%clk
0:03:59.1]} 24. Bxc4 {[%clk 0:03:56.3]} 24... dxc4 {[%clk 0:03:57]} 25. Nd2
{[%clk 0:03:41.5]} 25... Nxd4 {[%clk 0:03:51.8]} 26. Ne4 {[%clk 0:03:36]} 26...
Qd5 {[%clk 0:03:46.1]} 27. Be3 {[%clk 0:03:22.9]} 27... Qxe4 {[%clk 0:03:40.6]}
28. Bxd4 {[%clk 0:03:12]} 28... Qc6 {[%clk 0:03:38.9]} 29. Bxb6 {[%clk
0:03:09.5]} 29... Qxb6 {[%clk 0:03:37.2]} 30. Nxg4 {[%clk 0:03:07.6]} 30... Rd8
{[%clk 0:03:30.5]} 31. Qf3 {[%clk 0:03:01.3]} 31... Rd3 {[%clk 0:03:19.9]} 32.
Nf6+ {[%clk 0:02:45.1]} 32... Bxf6 {[%clk 0:03:17.3]} 33. Qxf6 {[%clk 0:02:45]}
33... Qc6 {[%clk 0:03:14.4]} 34. f3 {[%clk 0:02:06]} 34... Rxf3 {[%clk
0:03:11.8]} 35. Qh4 {[%clk 0:01:57.6]} 35... Rf1+ {[%clk 0:03:09.9]} 0-1

[Event "Live Chess"]
[Site "Chess.com"]
[Date "2023.05.21"]
[Round "-"]
[White "ViktorTheCoolBoy"]
[Black "Berdgross"]
[Result "1-0"]
[WhiteElo "2477"]
[BlackElo "667"]
[TimeControl "300"]
[EndTime "5:00:01 PDT"]
[Termination "ViktorTheCoolBoy won by checkmate"]

1. e4 {[%clk 0:04:58.5]} 1... e5 {[%clk 0:04:58.3]} 2. Nf3 {[%clk 0:04:57.7]}
2... d6 {[%clk 0:04:57.4]} 3. Bc4 {[%clk 0:04:56]} 3... Bg4 {[%clk 0:04:55.1]}
4. Nc3 {[%clk 0:04:53]} 4... Nc6 {[%clk 0:04:51.6]} 5. h3 {[%clk 0:04:51.3]}
5... Bxf3 {[%clk 0:04:49.6]} 6. Qxf3 {[%clk 0:04:50.2]} 6... Nf6 {[%clk
0:04:49.2]} 7. d3 {[%clk 0:04:46.5]} 7... Nd4 {[%clk 0:04:41.7]} 8. Qd1 {[%clk
0:04:45.2]} 8... c5 {[%clk 0:04:30.1]} 9. O-O {[%clk 0:04:43.1]} 9... a6 {[%clk
0:04:22.9]} 10. a4 {[%clk 0:04:40.6]} 10... Be7 {[%clk 0:04:05.4]} 11. f4 {[%clk
0:04:39]} 11... exf4 {[%clk 0:04:02.4]} 12. Bxf4 {[%clk 0:04:37.4]} 12... O-O
{[%clk 0:03:57.2]} 13. Bg5 {[%clk 0:04:33.9]} 13... h5 {[%clk 0:03:54.9]} 14.
Bxf6 {[%clk 0:04:30.8]} 14... Bxf6 {[%clk 0:03:53.3]} 15. Qxh5 {[%clk
0:04:29.4]} 15... g6 {[%clk 0:03:25.4]} 16. Qxg6+ {[%clk 0:04:27.1]} 16... Bg7
{[%clk 0:03:19.6]} 17. Rxf7 {[%clk 0:04:25.6]} 17... Rxf7 {[%clk 0:01:59.6]} 18.
Qxf7+ {[%clk 0:04:25.5]} 18... Kh7 {[%clk 0:01:57.3]} 19. Rf1 {[%clk 0:04:21.3]}
19... Nxc2 {[%clk 0:01:49.7]} 20. Qh5+ {[%clk 0:04:19.4]} 20... Bh6 {[%clk
0:01:43.2]} 21. Rf7+ {[%clk 0:04:19.3]} 21... Kg8 {[%clk 0:01:23.3]} 22. Qg6+
{[%clk 0:04:14.2]} 22... Bg7 {[%clk 0:01:18.7]} 23. Qxg7# {[%clk 0:04:12.9]} 1-0

[Event "Live Chess"]
[Site "Chess.com"]
[Date "2023.05.21"]
[Round "-"]
[White "WilliWeisswurst"]
[Black "jbooth"]
[Result "1-0"]
[WhiteElo "1783"]
[BlackElo "1701"]
[TimeControl "300"]
[EndTime "5:00:06 PDT"]
[Termination "WilliWeisswurst won by resignation"]

1. e4 {[%clk 0:04:59.4]} 1... d6 {[%clk 0:04:55.7]} 2. Nf3 {[%clk 0:04:58.3]}
2... Nf6 {[%clk 0:04:54.1]} 3. Bd3 {[%clk 0:04:56.5]} 3... Nbd7 {[%clk
0:04:50.3]} 4. c3 {[%clk 0:04:55.6]} 4... Nc5 {[%clk 0:04:45.7]} 5. Bc2 {[%clk
0:04:53]} 5... Nfxe4 {[%clk 0:04:38.1]} 6. O-O {[%clk 0:04:51.2]} 6... Nf6
{[%clk 0:04:35.8]} 7. d4 {[%clk 0:04:49.2]} 7... Ncd7 {[%clk 0:04:33]} 8. Re1
{[%clk 0:04:46.9]} 8... e6 {[%clk 0:04:30.3]} 9. Nbd2 {[%clk 0:04:45.8]} 9...
Be7 {[%clk 0:04:28.3]} 10. Nf1 {[%clk 0:04:39.4]} 10... c5 {[%clk 0:04:24.8]}
11. h3 {[%clk 0:04:26.1]} 11... cxd4 {[%clk 0:04:15.4]} 12. Nxd4 {[%clk
0:04:22.6]} 12... O-O {[%clk 0:04:05.8]} 13. Qf3 {[%clk 0:04:10.6]} 13... Rb8
{[%clk 0:03:53.8]} 14. Be3 {[%clk 0:04:02.3]} 14... b6 {[%clk 0:03:50.3]} 15.
Bb3 {[%clk 0:03:54.5]} 15... Ne5 {[%clk 0:03:45.2]} 16. Qe2 {[%clk 0:03:35.6]}
16... a6 {[%clk 0:03:32]} 17. Rad1 {[%clk 0:03:21.8]} 17... Bb7 {[%clk
0:03:27.1]} 18. Bf4 {[%clk 0:03:07.6]} 18... Ng6 {[%clk 0:03:19.8]} 19. Bg3
{[%clk 0:03:02.3]} 19... Rc8 {[%clk 0:03:17.6]} 20. h4 {[%clk 0:02:44.4]} 20...
Re8 {[%clk 0:03:05.2]} 21. Nh2 {[%clk 0:02:15.9]} 21... Qc7 {[%clk 0:02:57.1]}
22. h5 {[%clk 0:02:07]} 22... Nf8 {[%clk 0:02:54.4]} 23. h6 {[%clk 0:02:02.6]}
23... g6 {[%clk 0:02:48]} 24. Ng4 {[%clk 0:01:59.7]} 24... Nxg4 {[%clk
0:02:37.2]} 25. Qxg4 {[%clk 0:01:56.2]} 25... e5 {[%clk 0:02:12.6]} 26. Nf3
{[%clk 0:01:40.3]} 26... Bf6 {[%clk 0:02:04.5]} 27. Ng5 {[%clk 0:01:17.4]} 27...
Ne6 {[%clk 0:01:46.2]} 28. Nxe6 {[%clk 0:01:12.3]} 28... fxe6 {[%clk 0:01:45]}
29. Bxe6+ {[%clk 0:01:11]} 29... Kh8 {[%clk 0:01:44.3]} 30. Bxc8 {[%clk
0:01:02.2]} 30... Bxc8 {[%clk 0:01:41.8]} 31. Qe4 {[%clk 0:00:56.4]} 31... Be6
{[%clk 0:01:31.5]} 32. Bh4 {[%clk 0:00:54.2]} 32... Qe7 {[%clk 0:01:26.3]} 33.
Bxf6+ {[%clk 0:00:52.9]} 33... Qxf6 {[%clk 0:01:24.8]} 34. Qb7 {[%clk
0:00:51.8]} 34... Bf7 {[%clk 0:01:13.5]} 35. Qxb6 {[%clk 0:00:48.2]} 35... g5
{[%clk 0:01:10.9]} 36. Qxd6 {[%clk 0:00:45.3]} 36... Qf4 {[%clk 0:01:04.1]} 37.
Qd7 {[%clk 0:00:37.7]} 37... Kg8 {[%clk 0:01:01.4]} 38. Rd6 {[%clk 0:00:31.3]}
38... Rf8 {[%clk 0:00:53.3]} 39. Rxa6 {[%clk 0:00:29.5]} 39... Qf6 {[%clk
0:00:47.7]} 40. Rxf6 {[%clk 0:00:28.2]} 1-0

[Event "Live Chess"]
[Site "Chess.com"]
[Date "2023.05.21"]
[Round "-"]
[White "RockTroll"]
[Black "NAZRIZ1977"]
[Result "0-1"]
[WhiteElo "2221"]
[BlackElo "1970"]
[TimeControl "300"]
[EndTime "5:00:14 PDT"]
[Termination "NAZRIZ1977 won by resignation"]

1. Nf3 {[%clk 0:04:56]} 1... g6 {[%clk 0:04:58.5]} 2. g3 {[%clk 0:04:55.9]} 2...
Bg7 {[%clk 0:04:57.6]} 3. Bg2 {[%clk 0:04:51.1]} 3... Nf6 {[%clk 0:04:57]} 4. d3
{[%clk 0:04:48.3]} 4... O-O {[%clk 0:04:56.4]} 5. Bd2 {[%clk 0:04:47.6]} 5... c5
{[%clk 0:04:55.9]} 6. Qc1 {[%clk 0:04:47]} 6... Re8 {[%clk 0:04:54.9]} 7. Bh6
{[%clk 0:04:46.4]} 7... Bh8 {[%clk 0:04:54.1]} 8. h4 {[%clk 0:04:46.1]} 8... Nc6
{[%clk 0:04:53.6]} 9. h5 {[%clk 0:04:44.9]} 9... d6 {[%clk 0:04:52.9]} 10. hxg6
{[%clk 0:04:43.7]} 10... fxg6 {[%clk 0:04:52.2]} 11. Nc3 {[%clk 0:04:41.2]}
11... Ng4 {[%clk 0:04:43.2]} 12. Bg5 {[%clk 0:04:36.6]} 12... Rf8 {[%clk
0:04:41.7]} 13. e4 {[%clk 0:04:27.7]} 13... Nd4 {[%clk 0:04:36.7]} 14. Nd5
{[%clk 0:04:08.6]} 14... Rf7 {[%clk 0:04:32.1]} 15. Nxd4 {[%clk 0:04:04.9]}
15... Bxd4 {[%clk 0:04:29.4]} 16. f3 {[%clk 0:03:55.2]} 16... Nf6 {[%clk
0:04:17.5]} 17. Bxf6 {[%clk 0:03:30]} 17... Bxf6 {[%clk 0:04:14.9]} 18. Qh6
{[%clk 0:03:27.7]} 18... Rg7 {[%clk 0:04:11.1]} 19. O-O-O {[%clk 0:03:17.7]}
19... Be6 {[%clk 0:03:59.8]} 20. Nxf6+ {[%clk 0:03:11.9]} 20... exf6 {[%clk
0:03:58.5]} 21. Rh4 {[%clk 0:03:02]} 21... Bxa2 {[%clk 0:03:48.8]} 22. b3 {[%clk
0:02:59.4]} 22... a5 {[%clk 0:03:48.3]} 23. Kb2 {[%clk 0:02:55.7]} 23... a4
{[%clk 0:03:47.8]} 24. Kxa2 {[%clk 0:02:55.1]} 24... axb3+ {[%clk 0:03:46.7]}
25. Kb2 {[%clk 0:02:46.4]} 25... Qa5 {[%clk 0:03:30.4]} 26. cxb3 {[%clk
0:02:35]} 26... Qa2+ {[%clk 0:03:28.1]} 27. Kc3 {[%clk 0:02:34.2]} 27... Qxg2
{[%clk 0:03:25.4]} 28. Rh2 {[%clk 0:02:09.7]} 28... Qxg3 {[%clk 0:03:22.5]} 29.
f4 {[%clk 0:02:05.6]} 29... Qe3 {[%clk 0:03:16.8]} 30. Kb2 {[%clk 0:01:51.9]}
30... Qd4+ {[%clk 0:03:13.3]} 0-1

[Event "Live Chess"]
[Site "Chess.com"]
[Date "2023.05.21"]
[Round "-"]
[White "JanMur7"]
[Black "ameetghasi100"]
[Result "0-1"]
[WhiteElo "1960"]
[BlackElo "2602"]
[TimeControl "300"]
[EndTime "5:00:14 PDT"]
[Termination "ameetghasi100 won by resignation"]

1. e4 {[%clk 0:04:58.1]} 1... c5 {[%clk 0:04:59.4]} 2. Nf3 {[%clk 0:04:54.8]}
2... Nc6 {[%clk 0:04:59.3]} 3. c3 {[%clk 0:04:53.9]} 3... e6 {[%clk 0:04:58.1]}
4. d4 {[%clk 0:04:50.9]} 4... Nf6 {[%clk 0:04:56.3]} 5. e5 {[%clk 0:04:49.3]}
5... Nd5 {[%clk 0:04:52.3]} 6. Bc4 {[%clk 0:04:48.1]} 6... d6 {[%clk 0:04:46.1]}
7. Bxd5 {[%clk 0:04:46.7]} 7... exd5 {[%clk 0:04:43.5]} 8. exd6 {[%clk
0:04:41.9]} 8... Bxd6 {[%clk 0:04:41.8]} 9. dxc5 {[%clk 0:04:41.8]} 9... Bxc5
{[%clk 0:04:40.7]} 10. O-O {[%clk 0:04:41.7]} 10... O-O {[%clk 0:04:39.5]} 11.
Nbd2 {[%clk 0:04:40.8]} 11... Bg4 {[%clk 0:04:38.6]} 12. h3 {[%clk 0:04:39.1]}
12... Bh5 {[%clk 0:04:37.9]} 13. Qb3 {[%clk 0:04:37.5]} 13... Qd7 {[%clk
0:04:34.3]} 14. Qb5 {[%clk 0:04:35]} 14... Bb6 {[%clk 0:04:31.1]} 15. Qd3 {[%clk
0:04:33.2]} 15... Rae8 {[%clk 0:04:28.8]} 16. Nb3 {[%clk 0:04:30.8]} 16... Re6
{[%clk 0:04:22.2]} 17. Nbd4 {[%clk 0:04:29.4]} 17... Rg6 {[%clk 0:04:19.8]} 18.
Kh2 {[%clk 0:04:27]} 18... Bc7+ {[%clk 0:04:18.8]} 19. g3 {[%clk 0:04:25.2]}
19... Re8 {[%clk 0:04:09.6]} 20. Nh4 {[%clk 0:04:15.6]} 20... Nxd4 {[%clk
0:03:59.4]} 21. cxd4 {[%clk 0:03:57.5]} 21... Rge6 {[%clk 0:03:56.8]} 22. Be3
{[%clk 0:03:52]} 22... Re4 {[%clk 0:03:55]} 23. Nf3 {[%clk 0:03:47.1]} 23...
Bxf3 {[%clk 0:03:53.2]} 0-1

[Event "Live Chess"]
[Site "Chess.com"]
[Date "2023.05.21"]
[Round "-"]
[White "chrisbradgate"]
[Black "Pablo_dmp"]
[Result "0-1"]
[WhiteElo "865"]
[BlackElo "1875"]
[TimeControl "300"]
[EndTime "5:00:15 PDT"]
[Termination "Pablo_dmp won on time"]

1. d4 {[%clk 0:04:58.6]} 1... Nf6 {[%clk 0:04:54.5]} 2. Bf4 {[%clk 0:04:57]}
2... d5 {[%clk 0:04:52.8]} 3. e3 {[%clk 0:04:55.8]} 3... Bf5 {[%clk 0:04:50.6]}
4. a3 {[%clk 0:04:53.3]} 4... e6 {[%clk 0:04:47.6]} 5. c3 {[%clk 0:04:52.2]}
5... c5 {[%clk 0:04:45.5]} 6. Bd3 {[%clk 0:04:51.2]} 6... Bg6 {[%clk 0:04:42.1]}
7. Nf3 {[%clk 0:04:48.3]} 7... Bd6 {[%clk 0:04:40.4]} 8. Bg3 {[%clk 0:04:43.4]}
8... Nc6 {[%clk 0:04:38]} 9. O-O {[%clk 0:04:41.4]} 9... cxd4 {[%clk 0:04:32.3]}
10. exd4 {[%clk 0:04:39.5]} 10... Ne4 {[%clk 0:04:31.1]} 11. Bxe4 {[%clk
0:04:35.8]} 11... Bxe4 {[%clk 0:04:27.8]} 12. Nfd2 {[%clk 0:04:33.4]} 12... Bd3
{[%clk 0:04:24.7]} 13. Re1 {[%clk 0:04:28.4]} 13... O-O {[%clk 0:04:22.8]} 14.
Re3 {[%clk 0:04:23.1]} 14... Bg6 {[%clk 0:04:20.8]} 15. Nf3 {[%clk 0:04:15.7]}
15... Ne7 {[%clk 0:04:19.3]} 16. Nh4 {[%clk 0:04:12]} 16... Rc8 {[%clk
0:04:14.5]} 17. Nxg6 {[%clk 0:04:09.2]} 17... hxg6 {[%clk 0:03:41.4]} 18. Bxd6
{[%clk 0:04:00.4]} 18... Qxd6 {[%clk 0:03:41.3]} 19. Rh3 {[%clk 0:03:57.3]}
19... Nf5 {[%clk 0:03:04.3]} 20. Nd2 {[%clk 0:03:29.2]} 20... Qf4 {[%clk
0:03:00.2]} 21. Nf1 {[%clk 0:03:03.1]} 21... Rc6 {[%clk 0:02:42.3]} 22. Ng3
{[%clk 0:02:55]} 22... Nh6 {[%clk 0:02:29.5]} 23. Qe2 {[%clk 0:02:16.1]} 23...
Rb6 {[%clk 0:02:21.5]} 24. b4 {[%clk 0:02:13.8]} 24... Rc8 {[%clk 0:02:15.6]}
25. Qd3 {[%clk 0:01:57]} 25... Rbc6 {[%clk 0:02:11.4]} 26. Ne2 {[%clk
0:01:47.6]} 26... Qf5 {[%clk 0:02:08.6]} 27. Qxf5 {[%clk 0:01:41.4]} 27... gxf5
{[%clk 0:02:08.5]} 28. Rc1 {[%clk 0:01:27.1]} 28... Ng4 {[%clk 0:02:06.6]} 29.
Ng3 {[%clk 0:01:20.1]} 29... f4 {[%clk 0:01:58.8]} 30. Nh5 {[%clk 0:01:15.2]}
30... g6 {[%clk 0:01:13.5]} 31. Nxf4 {[%clk 0:01:12.7]} 31... Nf6 {[%clk
0:01:10.3]} 32. Ne2 {[%clk 0:01:08.4]} 32... Ne4 {[%clk 0:01:08.7]} 33. Kf1
{[%clk 0:01:01]} 33... Nd2+ {[%clk 0:01:05.3]} 34. Ke1 {[%clk 0:00:57]} 34...
Nc4 {[%clk 0:01:01.3]} 35. g3 {[%clk 0:00:53.3]} 35... Nxa3 {[%clk 0:00:59]} 36.
g4 {[%clk 0:00:48.4]} 36... Nc4 {[%clk 0:00:50.6]} 37. Nf4 {[%clk 0:00:45.1]}
37... Nb2 {[%clk 0:00:43.3]} 38. Ne2 {[%clk 0:00:43.6]} 38... Kg7 {[%clk
0:00:39.2]} 39. Nf4 {[%clk 0:00:42.3]} 39... Rh8 {[%clk 0:00:33.8]} 40. Rxh8
{[%clk 0:00:39.5]} 40... Kxh8 {[%clk 0:00:33.7]} 41. h3 {[%clk 0:00:37.2]} 41...
g5 {[%clk 0:00:32.8]} 42. Ne2 {[%clk 0:00:34.7]} 42... Nd3+ {[%clk 0:00:31.4]}
43. Kd2 {[%clk 0:00:30.5]} 43... Nxc1 {[%clk 0:00:31.3]} 44. Nxc1 {[%clk
0:00:29.3]} 44... Kg7 {[%clk 0:00:28]} 45. Ne2 {[%clk 0:00:28.3]} 45... f6
{[%clk 0:00:21]} 46. f3 {[%clk 0:00:26.6]} 46... Ra6 {[%clk 0:00:19.2]} 47. Nc1
{[%clk 0:00:24.7]} 47... Ra1 {[%clk 0:00:18.6]} 48. Ne2 {[%clk 0:00:22.7]} 48...
Rh1 {[%clk 0:00:17]} 49. Kd3 {[%clk 0:00:19.6]} 49... Rxh3 {[%clk 0:00:16.1]}
50. Kd2 {[%clk 0:00:18.3]} 50... Rxf3 {[%clk 0:00:15]} 51. Ke1 {[%clk
0:00:16.5]} 51... Re3 {[%clk 0:00:13.5]} 52. Kd2 {[%clk 0:00:14.4]} 52... Re4
{[%clk 0:00:13]} 53. Ke1 {[%clk 0:00:13.4]} 53... Rxg4 {[%clk 0:00:12.3]} 54.
Kd2 {[%clk 0:00:12]} 54... Re4 {[%clk 0:00:12.2]} 55. Ke1 {[%clk 0:00:11]} 55...
Rxe2+ {[%clk 0:00:11.6]} 56. Kxe2 {[%clk 0:00:10]} 56... Kg6 {[%clk 0:00:11.5]}
57. Kd2 {[%clk 0:00:09.1]} 57... Kf5 {[%clk 0:00:11.4]} 58. Ke2 {[%clk
0:00:08.2]} 58... b5 {[%clk 0:00:11]} 59. Kf2 {[%clk 0:00:07.6]} 59... a6 {[%clk
0:00:10.9]} 60. Kg3 {[%clk 0:00:05.7]} 60... Ke4 {[%clk 0:00:10.8]} 61. Kf2
{[%clk 0:00:04.6]} 61... f5 {[%clk 0:00:09.7]} 62. Ke2 {[%clk 0:00:04.4]} 62...
f4 {[%clk 0:00:09.5]} 63. Kf2 {[%clk 0:00:03.5]} 63... g4 {[%clk 0:00:09.4]} 64.
Kg2 {[%clk 0:00:02.5]} 64... Kd3 {[%clk 0:00:09.3]} 65. Kf2 {[%clk 0:00:01.6]}
65... Kxc3 {[%clk 0:00:09.2]} 66. Ke2 {[%clk 0:00:00.5]} 66... Kxd4 {[%clk
0:00:09.1]} 0-1

[Event "Live Chess"]
[Site "Chess.com"]
[Date "2023.05.21"]
[Round "-"]
[White "Conradical12"]
[Black "LL220284LL"]
[Result "0-1"]
[WhiteElo "1582"]
[BlackElo "2328"]
[TimeControl "300"]
[EndTime "5:00:15 PDT"]
[Termination "LL220284LL won by resignation"]

1. e4 {[%clk 0:04:57.2]} 1... g6 {[%clk 0:04:59.4]} 2. Nc3 {[%clk 0:04:54.7]}
2... Bg7 {[%clk 0:04:59.3]} 3. d4 {[%clk 0:04:53.9]} 3... d6 {[%clk 0:04:58.7]}
4. Be3 {[%clk 0:04:53.3]} 4... c6 {[%clk 0:04:55.9]} 5. Qd2 {[%clk 0:04:52.6]}
5... b5 {[%clk 0:04:54.8]} 6. O-O-O {[%clk 0:04:50.2]} 6... b4 {[%clk
0:04:53.4]} 7. Nce2 {[%clk 0:04:47.9]} 7... a5 {[%clk 0:04:52.9]} 8. Ng3 {[%clk
0:04:47.3]} 8... Bb7 {[%clk 0:04:51.7]} 9. Nf3 {[%clk 0:04:46.5]} 9... Nd7
{[%clk 0:04:50.4]} 10. Bd3 {[%clk 0:04:45.9]} 10... h5 {[%clk 0:04:45.1]} 11. h4
{[%clk 0:04:45.1]} 11... Ngf6 {[%clk 0:04:44.1]} 12. Rhe1 {[%clk 0:04:41.4]}
12... Ng4 {[%clk 0:04:39]} 13. Bf4 {[%clk 0:04:37.4]} 13... O-O {[%clk
0:04:34.6]} 14. Be2 {[%clk 0:04:31.7]} 14... Nxf2 {[%clk 0:04:30.7]} 0-1

[Event "Live Chess"]
[Site "Chess.com"]
[Date "2023.05.21"]
[Round "-"]
[White "djw60"]
[Black "Pandreq"]
[Result "1-0"]
[WhiteElo "2148"]
[BlackElo "1223"]
[TimeControl "300"]
[EndTime "5:00:36 PDT"]
[Termination "djw60 won on time"]

1. g3 {[%clk 0:04:58.8]} 1... Nc6 {[%clk 0:04:56.9]} 2. Bg2 {[%clk 0:04:57.1]}
2... d5 {[%clk 0:04:52.3]} 3. c4 {[%clk 0:04:54.7]} 3... e6 {[%clk 0:04:46.4]}
4. Nf3 {[%clk 0:04:49.4]} 4... Nf6 {[%clk 0:04:35.8]} 5. O-O {[%clk 0:04:47.6]}
5... Bd7 {[%clk 0:04:22.9]} 6. b3 {[%clk 0:04:44.6]} 6... d4 {[%clk 0:04:16.1]}
7. e3 {[%clk 0:04:41.6]} 7... e5 {[%clk 0:04:10.8]} 8. exd4 {[%clk 0:04:39.7]}
8... exd4 {[%clk 0:04:02]} 9. Bb2 {[%clk 0:04:34.9]} 9... Bc5 {[%clk 0:03:52.1]}
10. Re1+ {[%clk 0:04:32.5]} 10... Be6 {[%clk 0:03:47.8]} 11. a3 {[%clk
0:04:31.1]} 11... O-O {[%clk 0:03:27.1]} 12. b4 {[%clk 0:04:28.3]} 12... Bd6
{[%clk 0:03:24.7]} 13. d3 {[%clk 0:04:22]} 13... Re8 {[%clk 0:03:17.2]} 14. Nbd2
{[%clk 0:04:19.8]} 14... a5 {[%clk 0:03:06.4]} 15. b5 {[%clk 0:04:09.2]} 15...
Ne7 {[%clk 0:02:58.7]} 16. Nxd4 {[%clk 0:04:07.2]} 16... Rb8 {[%clk 0:02:48.3]}
17. Nxe6 {[%clk 0:03:52.7]} 17... fxe6 {[%clk 0:02:47.3]} 18. Rxe6 {[%clk
0:03:49.5]} 18... Nd7 {[%clk 0:02:24.2]} 19. Qg4 {[%clk 0:03:32.9]} 19... Ng6
{[%clk 0:01:59.4]} 20. Rae1 {[%clk 0:03:16.4]} 20... Rxe6 {[%clk 0:01:46.6]} 21.
Qxe6+ {[%clk 0:03:11.5]} 21... Kh8 {[%clk 0:01:41.3]} 22. Ne4 {[%clk 0:03:05.2]}
22... Ndf8 {[%clk 0:01:34]} 23. Nxd6 {[%clk 0:02:44.4]} 23... Qxd6 {[%clk
0:01:21.8]} 24. Qxd6 {[%clk 0:02:40.3]} 24... cxd6 {[%clk 0:01:20]} 25. f4
{[%clk 0:02:33.3]} 25... Nd7 {[%clk 0:01:13.3]} 26. Re6 {[%clk 0:02:22.6]} 26...
d5 {[%clk 0:00:56.4]} 27. Bxd5 {[%clk 0:02:19.6]} 27... Nc5 {[%clk 0:00:54.3]}
28. Re3 {[%clk 0:02:10.6]} 28... b6 {[%clk 0:00:34.4]} 29. h4 {[%clk 0:02:06.1]}
29... h6 {[%clk 0:00:22.8]} 30. h5 {[%clk 0:01:58.5]} 30... Nf8 {[%clk
0:00:21.1]} 31. Re7 {[%clk 0:01:56.5]} 1-0

[Event "Live Chess"]
[Site "Chess.com"]
[Date "2023.05.21"]
[Round "-"]
[White "jumush"]
[Black "SupremeTactician"]
[Result "0-1"]
[WhiteElo "1737"]
[BlackElo "2239"]
[TimeControl "300"]
[EndTime "5:00:40 PDT"]
[Termination "SupremeTactician won by resignation"]

1. e4 {[%clk 0:04:53.6]} 1... e5 {[%clk 0:04:59.4]} 2. Nc3 {[%clk 0:04:51.9]}
2... Nc6 {[%clk 0:04:58.6]} 3. Bc4 {[%clk 0:04:49.9]} 3... Bc5 {[%clk
0:04:57.8]} 4. Qg4 {[%clk 0:04:48.1]} 4... Qf6 {[%clk 0:04:52.5]} 5. Nd5 {[%clk
0:04:46.6]} 5... Qxf2+ {[%clk 0:04:51.5]} 6. Kd1 {[%clk 0:04:45.3]} 6... Kf8
{[%clk 0:04:50.8]} 7. Nh3 {[%clk 0:04:36.8]} 7... h5 {[%clk 0:04:48.6]} 8. Nxf2
{[%clk 0:04:33.2]} 8... hxg4 {[%clk 0:04:46.3]} 9. Nxg4 {[%clk 0:04:31.4]} 9...
Bb6 {[%clk 0:04:41.3]} 10. Nxb6 {[%clk 0:04:28.8]} 10... axb6 {[%clk 0:04:41.2]}
11. Ne3 {[%clk 0:04:26.2]} 11... d6 {[%clk 0:04:37.7]} 12. h3 {[%clk 0:04:24.3]}
12... Nf6 {[%clk 0:04:36.6]} 13. d3 {[%clk 0:04:22.1]} 13... Na5 {[%clk
0:04:35.3]} 14. Rf1 {[%clk 0:04:18.5]} 14... Nxc4 {[%clk 0:04:34.1]} 15. Nxc4
{[%clk 0:04:16.9]} 15... Be6 {[%clk 0:04:33.2]} 16. Ne3 {[%clk 0:04:11.5]} 16...
Ke7 {[%clk 0:04:32.5]} 17. c4 {[%clk 0:04:08.5]} 17... c6 {[%clk 0:04:25.4]} 18.
b4 {[%clk 0:04:04.7]} 18... b5 {[%clk 0:04:22.8]} 19. Bb2 {[%clk 0:03:59.4]}
19... bxc4 {[%clk 0:04:19.9]} 20. Nxc4 {[%clk 0:03:57]} 20... Bxc4 {[%clk
0:04:18.8]} 21. dxc4 {[%clk 0:03:55]} 21... Nxe4 {[%clk 0:04:18.4]} 22. Ke2
{[%clk 0:03:49.5]} 22... Ng3+ {[%clk 0:04:16.8]} 23. Ke3 {[%clk 0:03:46.4]}
23... Nxf1+ {[%clk 0:04:16.7]} 24. Rxf1 {[%clk 0:03:44.4]} 24... Ke6 {[%clk
0:04:15.1]} 25. a3 {[%clk 0:03:42.8]} 25... f5 {[%clk 0:04:14.2]} 26. Rf2 {[%clk
0:03:39.8]} 26... Rh4 {[%clk 0:04:12.9]} 27. Rc2 {[%clk 0:03:36.5]} 27... Re4+
{[%clk 0:04:11.8]} 28. Kf2 {[%clk 0:03:32.9]} 28... g5 {[%clk 0:04:10.4]} 29. c5
{[%clk 0:03:26.6]} 29... d5 {[%clk 0:04:07]} 30. Kf3 {[%clk 0:03:11]} 30... d4
{[%clk 0:03:56.1]} 31. g4 {[%clk 0:03:04.9]} 31... Re3+ {[%clk 0:03:30.3]} 32.
Kf2 {[%clk 0:03:00.4]} 32... fxg4 {[%clk 0:03:29.4]} 33. hxg4 {[%clk 0:02:58.8]}
33... Rf8+ {[%clk 0:03:29]} 34. Kg2 {[%clk 0:02:57.1]} 34... Rf4 {[%clk
0:03:26.2]} 0-1